Cogmind - Beta 15 @@@ ROGUE MODE // 2025.10.04 @ 16:47:28 Player: DietSnapple Result: Destroyed by Y-54 Guardian with Flak Gun Performance ------------- Evolutions (3) 1500 Regions Visited (5) 1000 Robots Destroyed (27) 135 Value Destroyed (747) 747 Prototype IDs (0) 0 Alien Tech Used (0) 0 Bonus (0) 0 TOTAL SCORE: 3382 Bonus ------- None Cogmind --------- Core Integrity 0/700 Matter 119/300 Energy 100/100 System Corruption 0% Temperature Cool (12) Movement Core (200) Ox3 Location -7/Factory Parts ------- > --- POWER (2) -------- (None) > --- PROPULSION (4) --- (None) > --- UTILITY (5) ------ Medium Storage Unit > --- WEAPON (2) ------- (None) > --- INVENTORY (10) --- Weight Redist. System Improved Terrain Scanner Advanced Targeting Computer Advanced Targeting Computer Recoil Stabilizer Medium Armor Plating Advanced Assault Cannon Advanced Assault Cannon Grenade Launcher Grenade Launcher Peak State ------------ > --- POWER ------------ Deuterium Engine Deuterium Engine > --- PROPULSION ------- Improved Aluminum Leg VSS Leg VSS Leg > --- UTILITY ---------- Medium Storage Unit Advanced Weight Redist. System Medium Armor Plating > --- WEAPON ----------- Advanced Assault Cannon Advanced Assault Cannon > --- INVENTORY -------- Improved Ion Engine Improved Ion Engine Weight Redist. System Improved Terrain Scanner Advanced Targeting Computer Medium Armor Plating Advanced Assault Cannon Advanced Assault Cannon Grenade Launcher Grenade Launcher [Rating: 30] Favorites ----------- Power Improved Ion Engine Engine Improved Ion Engine Propulsion Light Treads Treads Light Treads Leg VSS Leg Wheel Compact Wheel Utility Medium Armor Plating Device Weight Redist. System Storage Medium Storage Unit Protection Medium Armor Plating Weapon Advanced Assault Cannon Energy Gun Medium Laser Ballistic Gun Autogun Ballistic Cannon Advanced Assault Cannon Build | -11 -10 -9 -8 -8 -7 ------- Run | Yrd Mat Mat Mat Sto Fac Slots Evolved 6 | . . 2 2 . 2 Power 1 | . . 1 . . . Propulsion 2 | . . . 2 . . Utility 3 | . . 1 . . 2 Weapon . | . . . . . . Parts Attached 34 | 8 5 10 9 1 1 Power 7 | 1 . 3 2 1 . Engine 7 | 1 . 3 2 1 . Core . | . . . . . . Reactor . | . . . . . . Propulsion 7 | 3 . 1 3 . . Treads 2 | 1 . 1 . . . Leg 3 | . . . 3 . . Wheel 2 | 2 . . . . . Hover . | . . . . . . Flight . | . . . . . . Utility 12 | 2 3 4 2 . 1 Device 5 | 1 2 . 1 . 1 Storage 4 | 1 1 2 . . . Processor . | . . . . . . Hackware . | . . . . . . Protection 3 | . . 2 1 . . Artifact . | . . . . . . Weapon 8 | 2 2 2 2 . . Energy Gun 2 | 2 . . . . . Energy Cannon . | . . . . . . Ballistic Gun 2 | . 2 . . . . Ballistic Cannon 4 | . . 2 2 . . Launcher . | . . . . . . Special Weapon . | . . . . . . Impact Weapon . | . . . . . . Slashing Weapon . | . . . . . . Piercing Weapon . | . . . . . . Special Melee Weapon . | . . . . . . Unidentified Prototypes . | . . . . . . Parts Lost 11 | . . . 3 2 6 Power 3 | . . . 1 . 2 Propulsion 3 | . . . . 1 2 Utility 3 | . . . 1 1 1 Weapon 2 | . . . 1 . 1 Highest Loss Streak 5 | . . . 2 1 5 To Critical Strikes . | . . . . . . Average Backups 10 | 3 10 13 8 9 10 Power . | . 1 . . . . Propulsion 1 | 2 3 3 . . . Utility 3 | . 2 4 3 5 6 Weapon 3 | . 3 4 3 4 4 Tool/Special . | . . . . . . Unused Backups 13 | . . 4 2 . 7 Power . | . . . . . . Propulsion 3 | . . 3 . . . Utility 3 | . . . . . 3 Weapon 7 | . . 1 2 . 4 Tool/Special . | . . . . . . Average Slot Usage (%) 88 | . 99 97 86 77 39 Engine 17 | . 14 21 17 17 8 Treads 8 | . . 19 5 . . Leg 9 | . . . 17 26 8 Wheel 5 | . 28 2 . . . Device 10 | . 13 11 9 9 9 Storage 10 | . 14 11 9 9 7 Protection 7 | . . 10 9 6 . Ballistic Gun 7 | . 21 13 . . . Ballistic Cannon 10 | . . 8 17 9 3 Peak Build Rating 30 | 9 12 19 30 26 26 Average Rating 19 | 5 10 17 25 25 16 On Entrance 14 | . 9 12 19 23 22 Naked Turns . | . . . . . . Heaviest Build 54 | 14 31 54 47 37 33 Greatest Support 46 | 26 32 46 46 46 33 Greatest Overweight (x) 5 | . 1 4 1 . 5 Average Overweight (x) . | . . . . . 1 Largest Inventory Capacity 15 | 8 15 15 10 10 10 Average Capacity 11 | 6 14 13 10 10 10 Most Carried 15 | 5 15 15 10 10 10 Average Carried 10 | 3 10 12 8 9 10 Final Capacity 15 | 8 15 10 10 10 10 Final Carried 15 | 5 15 9 9 10 10 Class Distribution -------------------- 100% | Mutant Dominant Class ---------------- Mutant | -10/Materials Mutant | -9/Materials Mutant | -8/Materials Mutant | -8/Storage Mutant | -7/Factory Resources | -11 -10 -9 -8 -8 -7 ----------- Run | Yrd Mat Mat Mat Sto Fac Matter Collected 1014 | 261 . 353 317 . 83 Remotely . | . . . . . . Salvage Created 708 | 70 87 276 275 . . Parts 53 | 7 7 14 25 . . Haulers Intercepted . | . . . . . . Recyclers Shooed 1 | . . . 1 . . Parts Field Recycled . | . . . . . . Retrieved Matter . | . . . . . . Parts Self-Destructed . | . . . . . . Prevented . | . . . . . . Kills | -11 -10 -9 -8 -8 -7 ------- Run | Yrd Mat Mat Mat Sto Fac Combat Hostiles Destroyed 23 | . 2 7 14 . . Guns 7 | . 2 5 . . . Cannons 16 | . . 2 14 . . Classes Destroyed 7 | 2 1 1 3 . . Worker 1 | . . . 1 . . Tunneler 1 | 1 . . . . . Recycler 1 | 1 . . . . . Operator 1 | . . . 1 . . Swarmer 8 | . . . 8 . . Grunt 10 | . 2 6 2 . . Sentry 5 | . . 1 4 . . Best Kill Streak 4 | 2 2 4 4 . . Combat Bots Only 4 | . 2 4 4 . . Max Kills in Single Turn 2 | 1 1 1 2 . . Gunslinging . | . . . . . . Exploded . | . . . . . . Melee . | . . . . . . Uniques/NPCs Destroyed . | . . . . . . Combat | -11 -10 -9 -8 -8 -7 -------- Run | Yrd Mat Mat Mat Sto Fac Hostile Shots Fired 387 | . 2 18 109 42 216 Missed 150 | . 2 8 32 22 86 Hits 237 | . . 10 77 20 130 Projectile 237 | . . 10 77 20 130 Critical Strikes 5 | . . . 4 1 . Damage Taken 2487 | . . 135 1002 320 1030 Core 969 | . . 39 78 150 702 Absorbed by Shields . | . . . . . . Core Remaining (%) 87 | 100 100 90 . 58 . Volleys Fired 67 | 4 6 16 41 . . Largest 2 | 2 2 2 2 . . Hottest 90 | 90 46 74 80 . . Shots Fired 132 | 8 12 32 80 . . Gun 48 | 8 12 28 . . . Cannon 84 | . . 4 80 . . Launcher . | . . . . . . Special . | . . . . . . Kinetic 124 | . 12 32 80 . . Thermal 8 | 8 . . . . . Explosive . | . . . . . . Electromagnetic . | . . . . . . Robot Hit Streak 7 | 7 3 6 6 . . Robot Miss Streak 5 | . 2 2 5 . . Penetration Max . | . . . . . . Secondary Targets . | . . . . . . Shots Hit Robots 71 | 7 6 21 37 . . Core Hits 34 | 3 4 10 17 . . Critical Kills . | . . . . . . Critical Parts Destroyed . | . . . . . . Critical Strikes 3 | . . . 3 . . Blast 3 | . . . 3 . . Melee Attacks . | . . . . . . Impact . | . . . . . . Slashing . | . . . . . . Piercing . | . . . . . . Sneak Attacks . | . . . . . . Combat Hostiles . | . . . . . . Follow-up Attacks . | . . . . . . Damage Inflicted 1713 | 84 106 371 1145 . 7 Guns 507 | 84 106 317 . . . Cannons 1194 | . . 54 1140 . . Explosions . | . . . . . . Melee . | . . . . . . Ramming 12 | . . . 5 . 7 Kinetic 1617 | . 106 371 1140 . . Thermal 84 | 84 . . . . . Explosive . | . . . . . . Electromagnetic . | . . . . . . Impact . | . . . . . . Slashing . | . . . . . . Piercing . | . . . . . . Highest Corruption 1 | . . 1 . . . Average Corruption 1 | . . 1 . . . Corruption Purged . | . . . . . . Corruption Blocked . | . . . . . . Effects 2 | . . 2 . . . Message Errors 2 | . . 2 . . . Overload Shots . | . . . . . . Overflow Damage 7 | . . . 7 . . Projectiles 7 | . . . 7 . . Explosions . | . . . . . . Melee . | . . . . . . Knockbacks 7 | . . . 7 . . Impact . | . . . . . . Kinetic 6 | . . . 6 . . Secondary 1 | . . . 1 . . Self-Inflicted Damage 3 | . . . . . 3 Shots . | . . . . . . Rammed 1 | . . . . . 1 Targets Rammed 5 | . . . 4 . 1 Kicked 4 | . . . 4 . . Crushed . | . . . . . . Highest Temperature 206 | 60 12 66 206 4 . Average Temperature 58 | 25 7 15 70 4 . Received Heat Transfer 834 | . . 66 351 135 282 Siege Activations . | . . . . . . Martial Activations . | . . . . . . Shielding Activations . | . . . . . . Robots Disrupted . | . . . . . . Combat Hostiles . | . . . . . . Robots Corrupted . | . . . . . . Combat Hostiles . | . . . . . . Parts Fried . | . . . . . . Impact Corruptions . | . . . . . . Robots Melted . | . . . . . . Combat Hostiles . | . . . . . . Parts Melted . | . . . . . . Heat Transferred 223 | 223 . . . . . Parts Sabotaged . | . . . . . . Parts Stolen . | . . . . . . Parts Stripped . | . . . . . . Power Chain Reactions . | . . . . . . Alert | -11 -10 -9 -8 -8 -7 ------- Run | Yrd Mat Mat Mat Sto Fac Maximum Alert Level . | . . . . . . Low Security (%) 100 | 100 100 100 100 100 100 Level 1 . | . . . . . . Level 2 . | . . . . . . Level 3 . | . . . . . . Level 4 . | . . . . . . Level 5 . | . . . . . . High Security . | . . . . . . Max Security . | . . . . . . Peak Influence 182 | 5 50 104 182 48 9 Initial 48 | . . 14 . 48 9 Average 37 | . 4 20 85 14 1 Influence Increases 726 | 10 50 165 441 60 . Destroy 0b10 Robot/C 460 | . 40 140 280 . . Destroy 0b10 Robot/NC 20 | 10 . . 10 . . Destroy Leader 90 | . 10 20 60 . . Successful Hack 5 | . . 5 . . . Disable Machine 30 | . . . 30 . . Destroy Structure 31 | . . . 31 . . Lose Combat Pursuer 90 | . . . 30 60 . Influence Decreases 726 | 10 16 199 327 154 20 Entered New Map 97 | . . 20 . 66 11 Time Decay 589 | 10 16 179 297 78 9 Lost Part 40 | . . . 30 10 . Squads Dispatched 6 | . 2 . 3 1 . Investigation 2 | . 1 . 1 . . Extermination . | . . . . . . Reinforcement 3 | . 1 . 1 1 . Assault . | . . . . . . Garrison 1 | . . . 1 . . Intercept . | . . . . . . Searches Triggered . | . . . . . . Construction Impeded . | . . . . . . Haulers Reinforced . | . . . . . . Active Scanning Responses . | . . . . . . Cargo Convoy Interrupts . | . . . . . . Stealth | -11 -10 -9 -8 -8 -7 --------- Run | Yrd Mat Mat Mat Sto Fac Distress Signals 4 | . 1 1 2 . . Communications Jammed . | . . . . . . Distress Signals . | . . . . . . Times Spotted 54 | . 3 8 29 12 2 Peak Tracking Total 9 | . 2 3 6 9 3 Tactical Retreats 5 | . . . 2 3 . Traps | -11 -10 -9 -8 -8 -7 ------- Run | Yrd Mat Mat Mat Sto Fac Traps Triggered 4 | . . 1 1 1 1 Indirectly . | . . . . . . Trap Hack Attempts . | . . . . . . Triggered . | . . . . . . Disarmed . | . . . . . . Reprogrammed . | . . . . . . Reused . | . . . . . . Traps Extracted . | . . . . . . Installed . | . . . . . . Triggered . | . . . . . . Machines | -11 -10 -9 -8 -8 -7 ---------- Run | Yrd Mat Mat Mat Sto Fac Machines Disabled 2 | . . . 2 . . Max in Single Turn 1 | . . . 1 . . Machines Repaired . | . . . . . . Machines Dismantled . | . . . . . . Machines Sabotaged . | . . . . . . Overloaded Fab Kills . | . . . . . . Hacking | -11 -10 -9 -8 -8 -7 --------- Run | Yrd Mat Mat Mat Sto Fac Machines Accessed 6 | . 1 2 1 2 . Terminals 5 | . 1 2 1 1 . Fabricators . | . . . . . . Repair Stations 1 | . . . . 1 . Recycling Units . | . . . . . . Scanalyzers . | . . . . . . Garrison Access . | . . . . . . Total Hacks 11 | . 3 5 1 2 . Successful 7 | . 1 3 1 2 . Failed 4 | . 2 2 . . . Catastrophic . | . . . . . . Database Lockouts . | . . . . . . Manual . | . . . . . . Terminals 10 | . 3 5 1 1 . Fabricators . | . . . . . . Repair Stations 1 | . . . . 1 . Recycling Units . | . . . . . . Scanalyzers . | . . . . . . Garrison Access . | . . . . . . Terminal Hacks 6 | . 1 3 1 1 . Record 1 | . . . . 1 . Emergency Access Points 1 | . 1 . . . . Alert Level 1 | . . . 1 . . Hauler Manifests 1 | . . 1 . . . Registered Components 1 | . . 1 . . . Zone Layout 1 | . . 1 . . . Fabricator Hacks . | . . . . . . Repair Station Hacks 1 | . . . . 1 . Scan Component 1 | . . . . 1 . Recycling Unit Hacks . | . . . . . . Scanalyzer . | . . . . . . Garrison Access Hacks . | . . . . . . Unauthorized Hacks . | . . . . . . Terminals . | . . . . . . Fabricators . | . . . . . . Repair Stations . | . . . . . . Recycling Units . | . . . . . . Scanalyzers . | . . . . . . Garrison Access . | . . . . . . Data Cores Recovered . | . . . . . . Used . | . . . . . . Hacking Detections 2 | . 1 1 . . . Full Trace Events . | . . . . . . Feedback Events . | . . . . . . Feedback Blocked . | . . . . . . Robot Schematics Acquired . | . . . . . . Robots Built . | . . . . . . Authchips . | . . . . . . Time . | . . . . . . Total Robot Build Rating . | . . . . . . Part Schematics Acquired . | . . . . . . Parts Built . | . . . . . . Authchips . | . . . . . . Time . | . . . . . . Total Part Build Rating . | . . . . . . Parts Repaired . | . . . . . . Time . | . . . . . . Parts Recycled . | . . . . . . Recycled Matter . | . . . . . . Retrieved Matter . | . . . . . . Retrieved Components . | . . . . . . Parts Scanalyzed . | . . . . . . Part Schematics Acquired . | . . . . . . Parts Damaged . | . . . . . . Bothacking | -11 -10 -9 -8 -8 -7 ------------ Run | Yrd Mat Mat Mat Sto Fac Used RIF Installer . | . . . . . . Robots Hacked . | . . . . . . Non-combat . | . . . . . . Combat . | . . . . . . Robot Hacks Applied . | . . . . . . Relay Couplers Released . | . . . . . . Fabnet Peak Effective % . | . . . . . . Robots Rewired . | . . . . . . Allies Hacked . | . . . . . . Hacks Repelled . | . . . . . . Allies | -11 -10 -9 -8 -8 -7 -------- Run | Yrd Mat Mat Mat Sto Fac Total Allies . | . . . . . . Largest Group . | . . . . . . Highest-Rated Group . | . . . . . . Highest-Rated Ally . | . . . . . . Total Orders . | . . . . . . Ally Attacks . | . . . . . . Total Damage . | . . . . . . Kills . | . . . . . . Allies Corrupted . | . . . . . . Allies Melted . | . . . . . . Intel | -11 -10 -9 -8 -8 -7 ------- Run | Yrd Mat Mat Mat Sto Fac Active Infowar (turns) 185 | 83 75 . . . 27 Terrain 158 | 83 75 . . . . ECM 27 | . . . . . 27 Robot Analysis Total . | . . . . . . Derelict Logs Recovered . | . . . . . . Drone Launches . | . . . . . . Drone Recoveries . | . . . . . . Exploration | -11 -10 -9 -8 -8 -7 ------------- Run | Yrd Mat Mat Mat Sto Fac Turns Passed 2931 | 172 431 868 1006 290 164 Spaces Moved 1945 | 163 361 407 622 289 103 Core 48 | 14 . 6 . . 28 Treads 565 | 3 . 368 194 . . Legs 792 | . . . 428 289 75 Wheels 540 | 146 361 33 . . . Hover . | . . . . . . Flight . | . . . . . . Fastest Speed 50 | 50 90 90 100 90 90 Average Speed 131 | 88 92 193 137 99 140 Slowest Speed 300 | 160 105 250 183 100 300 Overloaded Moves . | . . . . . . Propulsion Burnouts . | . . . . . . Robots Hopped . | . . . . . . Potential Cave-ins . | . . . . . . Cave-ins Triggered . | . . . . . . Exploration Rate (%) 30 | 6 53 20 50 49 4 Regions Visited 5 Branch Regions 1 Pre-discovered Areas . | . . . . . . Known Exits Taken . | . . . . . . Unknown Exits Taken 5 | 1 1 1 1 1 . Scrap Searched . | . . . . . . Spaces Dug . | . . . . . . Terrain Destroyed 29 | . . . 29 . . Melee . | . . . . . . Projectile 29 | . . . 29 . . AOE . | . . . . . . Terrain Rammed . | . . . . . . Walls Destroyed . | . . . . . . Machines Disabled . | . . . . . . Actions | -11 -10 -9 -8 -8 -7 --------- Run | Yrd Mat Mat Mat Sto Fac Total 2198 | 179 449 467 691 290 122 Wait 85 | . 67 1 1 . 16 Move 1940 | 162 360 406 621 288 103 Hop . | . . . . . . Pick Up 21 | 4 7 5 4 1 . Fast Attach 24 | 8 2 10 2 1 1 Attach 9 | . 2 4 3 . . Detach 10 | 1 4 4 1 . . Swap 8 | . 1 2 5 . . Drop 29 | . . 19 9 . 1 Fire 67 | 4 6 16 41 . . Melee . | . . . . . . Ram 1 | . . . . . 1 Kick 4 | . . . 4 . . Crush . | . . . . . . Escape Stasis . | . . . . . . Rewire . | . . . . . . Trap . | . . . . . . Miscellaneous . | . . . . . . Route ------- -11/Scrapyard -10/Materials -9/Materials -8/Materials -8/Storage -7/Factory History --------- Turn | Location | Event 33 | -11/Scrapyard | Discovered new exit (range 16) 173 | -11/Scrapyard | Entered Materials 174 | -10/Materials | Met a group of wandering Federalists 310 | -10/Materials | Build established: Mutant 573 | -10/Materials | Discovered new exit (range 15) 604 | -10/Materials | Entered another Materials area 604 | -9/Materials | Evolved 2 slots: Power x1, Utility x1 1345 | -9/Materials | Discovered new exit (range 16) 1472 | -9/Materials | Entered another Materials area 1472 | -8/Materials | Evolved 2 slots: Propulsion x2 2448 | -8/Materials | Discovered new exit (range 14) 2460 | -8/Materials | Garrison activated, responded to threat 2478 | -8/Materials | Entered Storage 2753 | -8/Storage | Discovered new exit (range 16) 2768 | -8/Storage | Entered Factory 2768 | -7/Factory | Evolved 2 slots: Utility x2 2895 | -7/Factory | Lost 5 parts (2p2n1w) 2896 | -7/Factory | Core integrity fell below 50% 2919 | -7/Factory | Core integrity fell below 20% 2932 | -7/Factory | Destroyed by Y-54 Guardian with Flak Gun Last Messages --------------- 02850_ Adv. Assault Cannon destroyed. 02851_ U-05 Engineer lays Concrete. 02852_ U-05 Engineer builds a Wall. 02857_ The unstable cave ceiling collapses. 02857_ U-05 Engineer lays Concrete. 02858_ Deuterium Engine destroyed. 02858_ U-05 Engineer lays Concrete. 02859_ Dropped Adv. Weight Redist. System. 02859_ U-05 Engineer lays Concrete. 02860_ U-05 Engineer builds a Door. 02861_ U-05 Engineer builds a Wall. 02861_ VSS Leg destroyed. 02864_ Lgt. Deuterium Engine destroyed. 02865_ U-05 Engineer lays Concrete. 02865_ U-05 Engineer builds a Wall. 02866_ U-05 Engineer lays Concrete. 02922_ Adv. ECM Suite destroyed. 02926_ K-01 Serf destroyed. 02929_ Extracted 83 matter. 02931_ Slammed into Y-54 Guardian. Map ----- +----------------------------------------------------+ | ??????????# """""" #?????????????????????????????? | | ??????????# """""" #?????????????????????????????? | | ??????????# #?????????????????????????????? | | ??????????######+###?????????????????????????????? | | ???????????????# #???????????????????????????????? | | ???????????????# #???????????????????????????????? | | ???????????????# #???????????????????????????????? | | ???????????????# #???????????????????????????????? | | ??# ??? #????# #???????????????????????????????? | | ??# ??? #????# #???????????????????????????????? | | ??# """ #????# #???????????????????????????????? | | ?## """ #????# #???????+???????????????????????? | | ##" ##???# ######## ???????????????????????? | | #"""""""""###?# ""G"" ??????????????????????? | | ### "" "" #??????????????????????? | | # ## #??????????????????????? | | #??????????????????????? | | // #??????????????????????? | | / # #??????????????????????? | | / #??????????????????????? | | #+""""################ #??????????????????????? | | ?# ## #??????????????????????? | | # """""" ## #??????????????????????? | | !#= """""" ## #??????????????????????? | | %/! """""" ## Y#??????????????????????? | | #* """""" ## ##@###????????????????????? | | # ! ## # ! #????????????????????? | | ?############+#### # #????????????????????? | | ?????????#* #### # #????????????????????? | | ??????????# + # #????????????????????? | | ??????????# # # #????????????????????? | | ???????????# [# #Y #????????????????????? | | ???????????# # + #????????????????????? | | ????????????###### ## #????????????????????? | | ?????????????????# ## #????????????????????? | | ????????????????? #######????????????????????? | | ????????????????# ??????????????????????????? | | ????????????????# ?????????????????????????? | | ????????????????# ????????????????????????? | | ????????????????# ##???????????????????????? | | ????????????????# #????????????????????????? | | ????????????????# #????????????????????????? | | ????????????????# #????????????????????????? | | ????????????????# #????????????????????????? | | ????????????????# #????????????????????????? | | ???????????????? #????????????????????????? | | ???????????????? ????????????????????????? | | ????????????????? ?????????????????????????? | | ?????????????????????????????????????????????????? | | ?????????????????????????????????????????????????? | +----------------------------------------------------+ Best States ------------- Heat Dissipation 34 Energy Generation 23 Energy Capacity 450 Matter Stores 300 Matter Capacity 300 Sight Range 16 Terrain Scan Range 16 Terrain Scan Density 10 ECM Strength 2 Additional Mass Support 9 Armor Coverage 225 Evasion (%) 57 Recoil Reduction 2 Item Schematics ----------------- None Robot Schematics ------------------ None Fabricated ------------ Nothing Repaired ---------- Nothing Alien Tech Used ----------------- None Achievements -------------- None Challenges ------------ None Game ------ Seed ProcessingMultinovaFragment Manual? 0 Play Time 00:38:44 Cumulative 8.1 hours Start 2025.10.04 @ 16:01:28 End 2025.10.04 @ 16:47:28 Sessions 1 Manual Loads 0 Difficulty Rogue Special Mode None Game No. 22 Rogue 15 Adventurer 7 Explorer 0 Win Type - Total 0 Types 0/0/0/0/0/0/0/0/0/0 Lore% 1 Gallery% 12 Achievement% 11 Wizard Run 0 Options --------- Layout 1 ASCII 0 Keyboard 1 Movement Vi Keybinds 0 Fullscreen 1 Font 24/Smallcaps Map View 76x35 Zoom Use 4% Tactical HUD 1 Map Filters NONE Filters NONE Steam 1 RUN: 47b05153-f213-4589-9a28-2a7ba1820550